Cogmind - Beta 14 @@@ ROGUE MODE // 2025.03.11 @ 00:46:44 Player: moonlol Result: Self-destructed Performance ------------- Evolutions (2) 1000 Regions Visited (5) 1000 Robots Destroyed (20) 100 Value Destroyed (546) 546 Prototype IDs (25) 500 Alien Tech Used (0) 0 Bonus (399) 399 TOTAL SCORE: 3545 Bonus ------- Follower Combat Kills 99 Aligned with FarCom 300 Cogmind --------- Core Integrity 275/550 Matter 300/300 Energy 100/100 System Corruption 0% Temperature Cool (0) Movement Core (350) Ox6 Location -8/Materials Parts ------- > --- POWER (1) -------- (None) > --- PROPULSION (3) --- (None) > --- UTILITY (5) ------ Large Storage Unit Terrain Scan Processor Advanced Targeting Computer Target Analyzer > --- WEAPON (2) ------- (None) > --- INVENTORY (15) --- Light Nuclear Core Improved Deuterium Engine Aluminum Leg Medium Matter Pod (100) Core Shielding Utility Shielding Utility Shielding Improved Utility Shielding Reflective Plating Assault Cannon Field Lobotomy Kit (5) Shock Trap Shock Trap Shock Trap Shock Trap Peak State ------------ > --- POWER ------------ Light Deuterium Engine > --- PROPULSION ------- Aerolev Unit Combat Airjet Combat Airjet > --- UTILITY ---------- Large Storage Unit Terrain Scan Processor Advanced Targeting Computer Target Analyzer Improved Utility Shielding > --- WEAPON ----------- Pulse Rifle Assault Cannon > --- INVENTORY -------- Light Nuclear Core Aluminum Leg Huge Storage Unit Medium Matter Pod Core Shielding Utility Shielding Utility Shielding Reflective Plating Field Lobotomy Kit Shock Trap Shock Trap Shock Trap Shock Trap [Rating: 37] Favorites ----------- Power Light Nuclear Core Engine Light Ion Engine Power Core Light Nuclear Core Propulsion Combat Airjet Leg Aluminum Leg Wheel Compact Wheel Hover Unit Combat Airjet Utility Large Storage Unit Device Seismic Detector Storage Large Storage Unit Processor Terrain Scan Processor Protection Core Shielding Weapon Small Laser Energy Gun Small Laser Ballistic Gun Assault Rifle Ballistic Cannon Assault Cannon Launcher Mini Grenade Launcher Build | -11 -10 -10 -10 -9 -8 ------- Run | Yrd Mat Min Exi Min Mat Slots Evolved 4 | . . . . . 4 Power . | . . . . . . Propulsion 1 | . . . . . 1 Utility 3 | . . . . . 3 Weapon . | . . . . . . Parts Attached 42 | 7 5 10 1 1 18 Power 8 | 1 1 3 1 . 2 Engine 6 | 1 1 2 . . 2 Core 2 | . . 1 1 . . Reactor . | . . . . . . Propulsion 10 | 2 3 3 . . 2 Treads . | . . . . . . Leg 2 | . 1 . . . 1 Wheel 4 | 2 2 . . . . Hover 4 | . . 3 . . 1 Flight . | . . . . . . Utility 12 | 2 1 1 . 1 7 Device 1 | 1 . . . . . Storage 3 | 1 1 1 . . . Processor 4 | . . . . . 4 Hackware . | . . . . . . Protection 4 | . . . . 1 3 Artifact . | . . . . . . Weapon 12 | 2 . 3 . . 7 Energy Gun 9 | 1 . 3 . . 5 Energy Cannon . | . . . . . . Ballistic Gun 1 | 1 . . . . . Ballistic Cannon 1 | . . . . . 1 Launcher 1 | . . . . . 1 Special Weapon . | . . . . . . Impact Weapon . | . . . . . . Slashing Weapon . | . . . . . . Piercing Weapon . | . . . . . . Special Melee Weapon . | . . . . . . Unidentified Prototypes 2 | . . . . . 2 Parts Lost 13 | . 3 2 . . 8 Power 3 | . 1 1 . . 1 Propulsion 5 | . 2 . . . 3 Utility . | . . . . . . Weapon 5 | . . 1 . . 4 Highest Loss Streak 3 | . 3 1 . . 3 To Critical Strikes . | . . . . . . Average Slot Usage (%) 82 | . 97 87 71 81 78 Engine 8 | . 13 12 13 . 3 Core 3 | . . . . 14 5 Wheel 7 | . 25 12 . . . Hover 18 | . . 15 28 28 24 Device 3 | . 14 6 . . . Storage 11 | . 14 14 14 14 9 Processor 5 | . . . . . 12 Protection 4 | . . . . 10 9 Energy Gun 14 | . 14 17 14 14 13 Ballistic Gun 3 | . 14 6 . . . Peak Build Rating 37 | 7 7 16 17 18 37 Average Rating 18 | 5 6 11 15 17 28 On Entrance 10 | . 7 7 15 17 18 Naked Turns . | . . . . . . Heaviest Build 35 | 13 18 27 26 27 35 Greatest Support 32 | 32 32 32 24 24 32 Greatest Overweight (x) 6 | . 5 2 1 1 6 Average Overweight (x) . | . . . 1 1 . Largest Inventory Capacity 15 | 8 10 15 15 15 15 Average Capacity 13 | 7 9 14 15 15 15 Most Carried 15 | 3 9 15 15 15 15 Average Carried 12 | 1 7 13 14 15 14 Final Capacity 15 | 8 10 15 15 15 15 Final Carried 15 | 3 9 15 15 15 15 Class Distribution -------------------- 100% | Mutant Dominant Class ---------------- Mutant | -10/Materials Mutant | -10/Mines Mutant | -10/Exiles Mutant | -9/Mines Mutant | -8/Materials Resources | -11 -10 -10 -10 -9 -8 ----------- Run | Yrd Mat Min Exi Min Mat Matter Collected 817 | 143 225 230 . 30 189 Remotely . | . . . . . . Salvage Created 676 | 18 244 123 . . 291 Parts 40 | 4 18 6 . . 12 Haulers Intercepted 1 | . . . . . 1 Recyclers Shooed 1 | . 1 . . . . Parts Field Recycled . | . . . . . . Retrieved Matter . | . . . . . . Parts Self-Destructed . | . . . . . . Prevented . | . . . . . . Kills | -11 -10 -10 -10 -9 -8 ------- Run | Yrd Mat Min Exi Min Mat Combat Hostiles Destroyed 17 | . 9 3 . . 5 Guns 15 | . 8 3 . . 4 AOE 1 | . . . . . 1 Classes Destroyed 7 | 1 3 . . . 3 Tunneler 1 | 1 . . . . . Hauler 1 | . . . . . 1 Recycler 1 | . 1 . . . . Swarmer 6 | . 6 . . . . Grunt 9 | . 3 3 . . 3 Sentry 1 | . . . . . 1 Hunter 1 | . . . . . 1 Best Kill Streak 4 | 1 4 1 . . 4 Combat Bots Only 4 | . 3 1 . . 4 Max Kills in Single Turn 1 | 1 1 1 . . 1 Gunslinging . | . . . . . . Exploded 1 | . . . . . 1 Melee . | . . . . . . Uniques/NPCs Destroyed . | . . . . . . Combat | -11 -10 -10 -10 -9 -8 -------- Run | Yrd Mat Min Exi Min Mat Hostile Shots Fired 156 | . 46 22 . . 88 Missed 46 | . 14 6 . . 26 Damage Taken 1672 | . 325 304 . . 1043 Core 344 | . 34 35 . . 275 Absorbed by Shields . | . . . . . . Redirected to Shielding 34 | . . . . . 34 Core Remaining (%) 86 | 100 . . . 72 . Volleys Fired 74 | 3 35 18 . . 18 Largest 2 | 2 2 2 . . 2 Hottest 90 | 70 70 80 . . 90 Shots Fired 139 | 6 70 34 . . 29 Gun 133 | 6 70 34 . . 23 Cannon . | . . . . . . Launcher 6 | . . . . . 6 Special . | . . . . . . Kinetic 41 | 3 35 3 . . . Thermal 78 | 3 35 31 . . 9 Explosive 6 | . . . . . 6 Electromagnetic 14 | . . . . . 14 Robot Hit Streak 15 | 2 7 11 . . 15 Robot Miss Streak 3 | 1 3 3 . . 1 Penetration Max . | . . . . . . Secondary Targets . | . . . . . . Shots Hit Robots 87 | 3 42 22 . . 20 Core Hits 42 | 1 14 11 . . 16 Critical Kills 1 | . 1 . . . . Critical Parts Destroyed . | . . . . . . Critical Strikes 4 | . 4 . . . . Burn 3 | . 3 . . . . Destroy 1 | . 1 . . . . Melee Attacks . | . . . . . . Impact . | . . . . . . Slashing . | . . . . . . Piercing . | . . . . . . Sneak Attacks . | . . . . . . Combat Hostiles . | . . . . . . Follow-up Attacks . | . . . . . . Damage Inflicted 1398 | 41 543 265 . . 549 Guns 1175 | 41 543 249 . . 342 Cannons . | . . . . . . Explosions 124 | . . . . . 124 Melee . | . . . . . . Ramming 99 | . . 16 . . 83 Kinetic 396 | 15 342 39 . . . Thermal 534 | 26 201 210 . . 97 Explosive 124 | . . . . . 124 Electromagnetic 245 | . . . . . 245 Impact . | . . . . . . Slashing . | . . . . . . Piercing . | . . . . . . Highest Corruption . | . . . . . . Average Corruption . | . . . . . . Corruption Purged . | . . . . . . Corruption Blocked . | . . . . . . Overload Shots . | . . . . . . Overflow Damage . | . . . . . . Projectiles . | . . . . . . Explosions . | . . . . . . Melee . | . . . . . . Knockbacks 1 | . . . . . 1 Impact 1 | . . . . . 1 Kinetic . | . . . . . . Secondary . | . . . . . . Self-Inflicted Damage 48 | . . 7 . . 41 Shots . | . . . . . . Rammed 15 | . . 5 . . 10 Targets Rammed 15 | . . 5 . . 10 Kicked . | . . . . . . Crushed . | . . . . . . Highest Temperature 144 | 27 131 144 . . 144 Average Temperature 50 | 14 43 53 . . 64 Received Heat Transfer 681 | . 132 126 . . 423 Siege Activations . | . . . . . . Robots Corrupted . | . . . . . . Combat Hostiles . | . . . . . . Parts Fried 1 | . . . . . 1 Impact Corruptions . | . . . . . . Robots Melted 1 | . 1 . . . . Combat Hostiles 1 | . 1 . . . . Parts Melted 3 | . 2 1 . . . Heat Transferred 1588 | 74 814 475 . . 225 Parts Sabotaged . | . . . . . . Parts Stolen . | . . . . . . Parts Stripped . | . . . . . . Power Chain Reactions . | . . . . . . Alert | -11 -10 -10 -10 -9 -8 ------- Run | Yrd Mat Min Exi Min Mat Peak Influence 261 | 5 128 140 . . 261 Initial 7 | . 3 7 . . . Average 56 | 1 53 51 . . 69 Maximum Alert Level 1 | . . . . . 1 Low Security (%) 95 | 100 100 100 . 100 91 Level 1 4 | . . . . . 8 Level 2 . | . . . . . . Level 3 . | . . . . . . Level 4 . | . . . . . . Level 5 . | . . . . . . High Security . | . . . . . . Max Security . | . . . . . . Squads Dispatched 4 | . 1 . . . 3 Investigation 2 | . 1 . . . 1 Extermination . | . . . . . . Reinforcement 2 | . . . . . 2 Assault . | . . . . . . Garrison . | . . . . . . Intercept . | . . . . . . Searches Triggered . | . . . . . . Construction Impeded . | . . . . . . Haulers Reinforced . | . . . . . . Active Scanning Responses . | . . . . . . Cargo Convoy Interrupts . | . . . . . . Stealth | -11 -10 -10 -10 -9 -8 --------- Run | Yrd Mat Min Exi Min Mat Distress Signals 4 | . 1 . . . 3 Communications Jammed . | . . . . . . Distress Signals . | . . . . . . Times Spotted 60 | . 16 9 . . 35 Peak Tracking Total 11 | . 4 3 . . 11 Tactical Retreats 12 | . . 2 . . 10 Traps | -11 -10 -10 -10 -9 -8 ------- Run | Yrd Mat Min Exi Min Mat Traps Triggered 1 | . . . . . 1 Indirectly . | . . . . . . Trap Hack Attempts . | . . . . . . Triggered . | . . . . . . Disarmed . | . . . . . . Reprogrammed 6 | . 6 . . . . Reused . | . . . . . . Traps Extracted . | . . . . . . Installed . | . . . . . . Triggered . | . . . . . . Most Traps Carried 5 | . . 5 4 4 4 Machines | -11 -10 -10 -10 -9 -8 ---------- Run | Yrd Mat Min Exi Min Mat Machines Disabled . | . . . . . . Max in Single Turn . | . . . . . . Machines Repaired . | . . . . . . Machines Dismantled . | . . . . . . Machines Sabotaged . | . . . . . . Overloaded Fab Kills . | . . . . . . Hacking | -11 -10 -10 -10 -9 -8 --------- Run | Yrd Mat Min Exi Min Mat Machines Accessed 10 | . 6 . 2 . 2 Terminals 8 | . 6 . . . 2 Fabricators . | . . . . . . Repair Stations . | . . . . . . Recycling Units . | . . . . . . Scanalyzers . | . . . . . . Garrison Access . | . . . . . . Total Hacks 38 | . 29 . 2 . 7 Successful 26 | . 21 . 2 . 3 Failed 12 | . 8 . . . 4 Catastrophic 1 | . 1 . . . . Database Lockouts . | . . . . . . Manual 29 | . 21 . 1 . 7 Terminals 36 | . 29 . . . 7 Fabricators . | . . . . . . Repair Stations . | . . . . . . Recycling Units . | . . . . . . Scanalyzers . | . . . . . . Garrison Access . | . . . . . . Terminal Hacks 10 | . 8 . 2 . . Record 1 | . . . 1 . . Terminal Index 1 | . 1 . . . . Unreport Threat 1 | . 1 . . . . Locate Traps 2 | . 2 . . . . Reprogram Traps 1 | . 1 . . . . Maintenance Status 1 | . 1 . . . . Recall Investigation 1 | . 1 . . . . Zone Layout 1 | . 1 . . . . Derelict Proto ID Bank 1 | . . . 1 . . Fabricator Hacks . | . . . . . . Repair Station Hacks . | . . . . . . Recycling Unit Hacks . | . . . . . . Scanalyzer . | . . . . . . Garrison Access Hacks . | . . . . . . Unauthorized Hacks 16 | . 13 . . . 3 Terminals 16 | . 13 . . . 3 Track 2 | . 2 . . . . Assimilate 1 | . . . . . 1 Botnet 7 | . 5 . . . 2 Operators 1 | . 1 . . . . Skim 5 | . 5 . . . . Fabricators . | . . . . . . Repair Stations . | . . . . . . Recycling Units . | . . . . . . Scanalyzers . | . . . . . . Garrison Access . | . . . . . . Data Cores Recovered . | . . . . . . Used . | . . . . . . Hacking Detections 8 | . 6 . . . 2 Full Trace Events 1 | . 1 . . . . Feedback Events . | . . . . . . Feedback Blocked . | . . . . . . Robot Schematics Acquired . | . . . . . . Robots Built . | . . . . . . Authchips . | . . . . . . Time . | . . . . . . Total Robot Build Rating . | . . . . . . Part Schematics Acquired . | . . . . . . Parts Built . | . . . . . . Authchips . | . . . . . . Time . | . . . . . . Total Part Build Rating . | . . . . . . Parts Repaired . | . . . . . . Time . | . . . . . . Parts Recycled . | . . . . . . Recycled Matter . | . . . . . . Retrieved Matter . | . . . . . . Retrieved Components . | . . . . . . Parts Scanalyzed . | . . . . . . Part Schematics Acquired . | . . . . . . Parts Damaged . | . . . . . . Bothacking | -11 -10 -10 -10 -9 -8 ------------ Run | Yrd Mat Min Exi Min Mat Used RIF Installer . | . . . . . . Robots Hacked . | . . . . . . Non-combat . | . . . . . . Combat . | . . . . . . Robot Hacks Applied . | . . . . . . Relay Couplers Released . | . . . . . . Fabnet Peak Effective % . | . . . . . . Robots Rewired . | . . . . . . Allies Hacked . | . . . . . . Hacks Repelled . | . . . . . . Allies | -11 -10 -10 -10 -9 -8 -------- Run | Yrd Mat Min Exi Min Mat Total Allies 2 | . . 2 . . . Largest Group 2 | . . 2 . . . Highest-Rated Group 49 | . . 49 . . . Highest-Rated Ally 31 | . . 31 . . . Total Orders . | . . . . . . Ally Attacks 12 | . . 12 . . . Total Damage 192 | . . 192 . . . Kills 3 | . . 3 . . . Allies Corrupted . | . . . . . . Allies Melted . | . . . . . . Intel | -11 -10 -10 -10 -9 -8 ------- Run | Yrd Mat Min Exi Min Mat Robot Analysis Total . | . . . . . . Derelict Logs Recovered 2 | . . 2 . . . Drone Launches . | . . . . . . Drone Recoveries . | . . . . . . Exploration | -11 -10 -10 -10 -9 -8 ------------- Run | Yrd Mat Min Exi Min Mat Turns Passed 2640 | 76 451 545 314 121 1133 Spaces Moved 1498 | 56 240 397 212 79 514 Core 12 | 3 2 . . . 7 Treads . | . . . . . . Legs 5 | . 5 . . . . Wheels 515 | 53 233 229 . . . Hover 966 | . . 168 212 79 507 Flight . | . . . . . . Fastest Speed 50 | 50 100 77 147 147 61 Average Speed 110 | 97 103 111 147 147 93 Slowest Speed 350 | 100 300 225 147 147 350 Overloaded Moves . | . . . . . . Propulsion Burnouts . | . . . . . . Robots Hopped . | . . . . . . Cave-ins Triggered . | . . . . . . Exploration Rate (%) 45 | 5 55 82 61 17 55 Regions Visited 5 Branch Regions 3 Pre-discovered Areas 3 | . . 1 1 1 . Known Exits Taken . | . . . . . . Unknown Exits Taken 5 | 1 1 1 1 1 . Scrap Searched 2 | . . 1 . 1 . Spaces Dug . | . . . . . . Terrain Destroyed 18 | . . . . . 18 Melee . | . . . . . . Projectile . | . . . . . . AOE 18 | . . . . . 18 Terrain Rammed . | . . . . . . Walls Destroyed . | . . . . . . Machines Disabled . | . . . . . . Actions | -11 -10 -10 -10 -9 -8 --------- Run | Yrd Mat Min Exi Min Mat Total 2336 | 68 370 464 214 84 1136 Wait 668 | . 85 18 . 3 562 Move 1493 | 55 239 396 211 78 514 Hop . | . . . . . . Pick Up 22 | 3 6 8 1 1 3 Fast Attach 21 | 7 2 2 . 1 9 Attach 5 | . 1 1 . . 3 Detach 6 | . . 2 . . 4 Swap 16 | . 2 7 1 . 6 Drop 16 | . . 7 1 1 7 Fire 74 | 3 35 18 . . 18 Melee . | . . . . . . Ram 15 | . . 5 . . 10 Kick . | . . . . . . Crush . | . . . . . . Escape Stasis . | . . . . . . Rewire . | . . . . . . Trap . | . . . . . . Miscellaneous . | . . . . . . Route ------- -11/Scrapyard -10/Materials -10/Mines (discovered 4 exits: [*Mat x2] / *Exi / Sub) -10/Exiles -9/Mines -8/Materials (discovered 4 exits: [*Fac x3] / [*Sto]) History --------- Turn | Location | Event 21 | -11/Scrapyard | Discovered new exit (range 15) 77 | -11/Scrapyard | Entered Materials 254 | -10/Materials | Discovered new exit (range 10) 318 | -10/Materials | Build established: Mutant 497 | -10/Materials | Lost 3 parts (1p2n) 528 | -10/Materials | Entered Mines 548 | -10/Mines | Learned location of Mines (-9) 578 | -10/Mines | Identified exit to Subcaves 605 | -10/Mines | Found a hidden stash of uninstalled traps 737 | -10/Mines | Assembled infested the area 866 | -10/Mines | Discovered new exit (range 7) 1036 | -10/Mines | Discovered new exit (range 14) 1067 | -10/Mines | Discovered new exit (range 5) 1073 | -10/Mines | Entered Exiles 1110 | -10/Exiles | Met 8R-AWN 1134 | -10/Exiles | Met EX-HEX 1173 | -10/Exiles | Met EX-BIN 1191 | -10/Exiles | Aligned with FarCom system 1193 | -10/Exiles | Given EX-Vault access code 1231 | -10/Exiles | Opened EX-Vault 1239 | -10/Exiles | Found Field Lobotomy Kit 1266 | -10/Exiles | Warned to stay clear of 0b10 Research branches 1315 | -10/Exiles | Met EX-DEC 1322 | -10/Exiles | Learned location of Zion (-7) 1375 | -10/Exiles | Discovered new exit (range 10) 1387 | -10/Exiles | Left Exiles lab with Field Lobotomy Kit 1387 | -10/Exiles | Entered Mines 1388 | -9/Mines | Learned location of Storage (-8) 1389 | -9/Mines | Met a Derelict bent on vengeance 1495 | -9/Mines | Discovered new exit (range 8) 1508 | -9/Mines | Entered Materials 1508 | -8/Materials | Evolved 4 slots: Propulsion x1, Utility x3 2327 | -8/Materials | Discovered new exit (range 16) 2332 | -8/Materials | Discovered new exit (range 15) 2350 | -8/Materials | Lost 3 parts (3w) 2497 | -8/Materials | Discovered new exit (range 11) 2544 | -8/Materials | Lost 3 parts (1p1n1w) 2604 | -8/Materials | Discovered new exit (range 4) 2641 | -8/Materials | Self-destructed Last Messages --------------- 02492_ Acquired 44 matter. 02492_ U-05 Engineer lays Concrete. 02497_ EXIT=FOUND 02498_ Cmb. Airjet destroyed. 02498_ Critical hit (Blast). 02498_ Knocked back. 02498_ Lgt. Deuterium Engine destroyed. 02509_ Acquired Imp. Deuterium Engine. 02513_ Pulse Rifle destroyed. 02521_ W-25 Informer sends out distress signal. 02543_ Terminal disabled. 02567_ Slammed into K-01 Serf. 02567_ K-01 Serf cleans the Matter Filter. 02578_ Dropped Huge Storage Unit. 02579_ Dropped Core Shielding. 02604_ EXIT=FOUND 02604_ Aerolev Unit destroyed. 02614_ W-25 Informer sends out distress signal. 02615_ Slammed into K-01 Serf. 02616_ Cmb. Airjet destroyed. Map ----- +----------------------------------------------------+ | | | | | | | | | ??????????????????????????????????????????????###? | | ?????????????????????????????????????????????? | | ???????????????????????????????????????????# """ | | ???????????????????????????????????????????# """ | | ???????????????????????????????????????????? """ | | ?????????????????????????????????????????????? | | ???????????????????????????????????????????????? | | ?????????????????????????????????????????????????? | | ????????????????????????????????????????????#+#??? | | ?????????????????????????????????#####??????# #### | | ?????????????????????????????????# #??????# | | ?????????????????????????????????# < #??????# | | ?????????????????????????????????# #??????# | | ?????????????????????????????????# ######## | | ?????????????????????????????????# | | ?????????????????????????????????# | | ????????????????????????????????## Y############# | | ????????????????????????????????# ########???? | | ????????????????????????????????# #???? | | ????????????????????????????????# #???? | | ?????????????????################gg #???? | | ??????????k @ YgYYkg #### #???? | | ?????????????????##################/###???? #???? | | ??????????????????????????????????? g ?????? #???? | | ???????????????????????????????????? ??????#???? | | ????????????????????????????????????? w ?????????? | | ?????????????????????????????????????? #??? | | ?????????????????????????????????????? C+????????? | | ??????????????????????????????????????? #????????? | | ????????????????????????????????????????#????????? | | ?????????????????????????????????????????????????? | | ?????????????????????????????????????????????????? | | ?????????????????????????????????????????????????? | | ?????????????????????????????????????????????????? | | ?????????????????????????????????????????????????? | | ??????????###########????????????????????????????? | | ??????????# #????????????????????????????? | | ??????????# #???????????????????????????## | | ??????????# #???????????????????????###?# | | ??????????# #????????????????????????!! # | | ??????????# """ """ #?????????????????????????! # | | ??????????# """ """ #?????????????????????????? + | | ??????????# """ """ #???????????????????????????# | | ??????????# #???????????????????????????# | | ??????????####+######??????????????????????????## | | ????######## #??????###????????????######### | +----------------------------------------------------+ Best States ------------- Heat Dissipation 31 Energy Generation 16 Energy Capacity 290 Matter Stores 300 Matter Capacity 300 Sight Range 16 Terrain Scan Density 85 Armor Coverage 150 Resistance: TH 10 Core Shielding 20 Utility Shielding 66 Evasion (%) 52 Targeting Accuracy 8 Launcher Accuracy 20 Target Analysis 5 Item Schematics ----------------- None Robot Schematics ------------------ None Fabricated ------------ Nothing Alien Tech Used ----------------- None Achievements -------------- None Challenges ------------ None Game ------ Seed ExplosiveHellfireShearcannon Manual? 0 Play Time 00:17:39 Cumulative 101.1 hours Start 2025.03.11 @ 00:30:33 End 2025.03.11 @ 00:46:44 Sessions 1 Manual Loads 0 Difficulty Rogue Special Mode None Game No. 118 Rogue 70 Adventurer 47 Explorer 1 Win Type - Total 10 Types 7/0/0/1/0/0/2/0/0 Lore% 51 Gallery% 59 Achievement% 63 Wizard Run 0 Options --------- Layout 0 ASCII 0 Keyboard 1 Movement Numpad Keybinds 0 Fullscreen 2 Font 18/SmallcapsGlow Map View 76x50 Zoom Use 0% Tactical HUD 1 Map Filters NONE Filters NONE Steam 1 RUN: 133c0009-259b-47f8-a4d8-1f58228912cd